[Event "29th Bosnjaci Open 2025"]
[Site "Bosnjaci"]
[Date "2025.01.05"]
[Round "4.10"]
[White "Grgantov, Marin"]
[Black "Topalic, Fran"]
[Result "1/2-1/2"]
[ECO "B12"]
[WhiteElo "2191"]
[BlackElo "1968"]
[Annotator "TA"]
[PlyCount "41"]
[EventDate "2025.01.04"]
[EventType "swiss"]
[EventCountry "CRO"]
[SourceTitle "playchess.com"]
[Source "ChessBase"]
[SourceQuality "1"]
[TimeControl "5400+30"]

{[%evp 9,41,11,41,0,0,-12,-1,0,8,2,6,0,3,-11,-14,-12,-7,0,0,0,8,0,0,0,0,0,0,0,0,0,0,0,0,0]} 1. e4 {[%emt 0:00:01]} c6 {[%emt 0:01:40]} 2. d4 {[%emt 0:00:09]} d5 {[%emt 0:00:05]} 3. e5 {[%emt 0:00:05]} c5 {[%emt 0:00:04]} 4. Nf3 {[%emt 0:00:04]} Bg4 {[%emt 0:01:21]} 5. dxc5 {[%emt 0:00:49]} e6 {[%emt 0:00:49]} 6. c3 {[%emt 0:02:49] Black must now prevent Qa4+.} Nd7 {[%emt 0:02:08]} 7. Be3 {[%emt 0:02:19]} Bxf3 {[%emt 0:02:20]} 8. Qxf3 {[%emt 0:00:59]} Bxc5 {[%emt 0:01:13]} 9. Bxc5 {[%emt 0:13:54]} Nxc5 {[%emt 0:00:06]} 10. Bb5+ {[%emt 0:00:22]} Nd7 {[%emt 0:00:12]} 11. c4 {[%emt 0:03:08]} Ne7 {[%emt 0:00:35]} 12. Nc3 {[%emt 0:10:29]} O-O {[%emt 0:00:49]} 13. Bxd7 {[%emt 0:04:14]} Qxd7 {[%emt 0:00:07]} 14. cxd5 {[%emt 0:06:28]} Nxd5 {[%emt 0:04:50]} 15. Rd1 {[%emt 0:04:08][%cal Rc3d5]} Qc7 {[%emt 0:02:42]} 16. Nxd5 {[%emt 0:03:25]} exd5 {[%emt 0:00:10]} 17. O-O {[%emt 0:00:40]} Qxe5 {[%emt 0:00:27]} 18. Qxd5 {[%emt 0:00:23]} Qxb2 {[%emt 0:00:50]} 19. Rb1 $1 {[%emt 0:00:33]} Qa3 {[%emt 0:00:50]} 20. Rxb7 {[%emt 0:00:12]} Rad8 {[%emt 0:00:58]} 21. Qb3 {[%emt 0:04:58]} 1/2-1/2

[Event "29th Bosnjaci Open 2025"]
[Site "Bosnjaci"]
[Date "2025.01.05"]
[Round "4.11"]
[White "Zufic, Miroslav"]
[Black "Babler, Jan"]
[Result "1-0"]
[ECO "B40"]
[WhiteElo "2313"]
[BlackElo "2059"]
[Annotator "TA"]
[PlyCount "83"]
[EventDate "2025.01.04"]
[EventType "swiss"]
[EventCountry "CRO"]
[SourceTitle "playchess.com"]
[Source "ChessBase"]
[SourceQuality "1"]
[TimeControl "5400+30"]

{[%evp 9,83,18,25,19,14,0,23,32,61,40,34,35,29,34,51,25,71,66,101,47,55,43,52,52,36,38,110,100,110,110,114,121,129,128,123,122,135,122,125,109,126,115,120,111,120,114,127,102,102,96,111,108,189,169,230,230,458,457,435,313,456,348,519,569,1019,969,1087,2116,1771,1351,1392,1369,1138,754,29942,12553]} 1. e4 {[%emt 0:01:54]} c5 {[%emt 0:00:19]} 2. Nf3 {[%emt 0:00:06]} e6 {[%emt 0:00:12]} 3. b3 {[%emt 0:01:19]} d5 {[%emt 0:01:56]} 4. exd5 {[%emt 0:00:24]} exd5 {[%emt 0:00:08]} 5. Bb5+ {[%emt 0:00:48]} Bd7 {[%emt 0:06:53]} 6. Bxd7+ {[%emt 0:02:08]} Qxd7 {[%emt 0:00:15]} 7. O-O {[%emt 0:03:04]} Nf6 {[%emt 0:03:47]} 8. d4 {[%emt 0:05:48]} Nc6 {[%emt 0:15:13]} 9. Re1+ {[%emt 0:10:06]} Be7 {[%emt 0:01:26]} 10. Ba3 {[%emt 0:10:34]} O-O {[%emt 0:04:59]} 11. Bxc5 {[%emt 0:04:44]} Bxc5 {[%emt 0:00:58]} 12. dxc5 {[%emt 0:00:05]} Rfe8 {[%emt 0:02:58]} (12... d4 $11) 13. Nc3 $16 {[%emt 0:06:12]} d4 {[%emt 0:08:49]} 14. Rxe8+ {[%emt 0:11:09]} ({White should play} 14. Nb5 $16) 14... Rxe8 $14 {[%emt 0:00:22]} 15. Ne2 {[%emt 0:05:17][%cal Re2d4]} Ne4 {[%emt 0:22:33][%cal Oe8d8]} 16. Nfxd4 {[%emt 0:04:30]} Rd8 {[%emt 0:05:49]} 17. c3 {[%emt 0:08:26]} Nxc5 {[%emt 0:03:22]} (17... Nxc3 $14 18. Nxc3 Nxd4) 18. Qc2 $16 {[%emt 0:02:05]} Ne5 {[%emt 0:01:24]} 19. h3 {[%emt 0:04:40]} h6 {[%emt 0:02:05]} 20. Re1 {[%emt 0:06:21]} Ncd3 {[%emt 0:08:09]} 21. Rd1 {[%emt 0:00:06][%cal Of2f4] Strongly threatening f4!.} Nc5 {[%emt 0:00:09]} 22. Nf4 {[%emt 0:04:05]} Nc6 {[%emt 0:03:29]} 23. Rd2 {[%emt 0:02:08] White is more active.} Qd6 {[%emt 0:01:03]} 24. Nfe2 {[%emt 0:04:07]} Re8 {[%emt 0:02:16]} 25. Nxc6 Qxc6 {[%emt 0:00:01]} 26. Rd1 {[%emt 0:02:08]} Ne4 {[%emt 0:01:37]} 27. c4 {[%emt 0:00:28]} Qf6 {[%emt 0:01:38]} 28. Ng3 {[%emt 0:01:09]} Nxg3 {[%emt 0:01:34]} 29. fxg3 {[%emt 0:00:01][%mdl 4096] Endgame KQR-KQR. White is a pawn up.} Qe5 {[%emt 0:00:24]} 30. Kh2 {[%emt 0:00:35]} b6 {[%emt 0:00:44] [#]} (30... g6 $16 31. Rd7 Re7 32. Rxe7 Qxe7) 31. Rd7 $1 $18 {[%emt 0:00:25]} a5 {[%emt 0:00:31] [#]} (31... Re7 {keeps fighting.} 32. Rd5 Qe6) 32. Qf2 $1 {[%emt 0:00:17][%csl LRb6,LRf7]} f6 $2 {[%emt 0:00:49]} (32... Qf6 33. Qxf6 gxf6) 33. Qxb6 {[%emt 0:00:13]} Kh7 {[%emt 0:00:24]} 34. Qd4 {[%emt 0:00:36]} Qg5 {[%emt 0:00:35]} (34... Qxd4 $142 35. Rxd4 Kg6) 35. Qd3+ {[%emt 0:00:15]} f5 {[%emt 0:00:16]} (35... Qg6 $142 36. Qxg6+ Kxg6) 36. Rd5 {[%emt 0:00:38][%csl LRa5,LRf5]} Qc1 {[%emt 0:00:35]} 37. Qxf5+ {[%emt 0:00:25]} Kg8 {[%emt 0:00:24]} 38. Rd7 {[%emt 0:00:45]} Rf8 {[%emt 0:00:19] Inhibits Qf7+.} 39. Qd5+ {[%emt 0:00:20]} Kh7 {[%emt 0:00:05]} 40. Qd3+ {[%emt 0:00:04]} ({Worse is} 40. Qxa5 Rf1 $11) 40... Kg8 {[%emt 0:00:17]} 41. Rd8 {[%emt 0:00:10]} Qa3 {[%emt 0:00:13]} 42. Qd5+ {[%emt 0:00:12]} 1-0

[Event "29th Bosnjaci Open 2025"]
[Site "Bosnjaci"]
[Date "2025.01.05"]
[Round "4.12"]
[White "Franc, Borna"]
[Black "Kejzar, Petra"]
[Result "1/2-1/2"]
[ECO "B22"]
[WhiteElo "2287"]
[BlackElo "2040"]
[Annotator "TA"]
[PlyCount "97"]
[EventDate "2025.01.04"]
[EventType "swiss"]
[EventCountry "CRO"]
[SourceTitle "playchess.com"]
[Source "ChessBase"]
[SourceQuality "1"]
[TimeControl "5400+30"]

{[%evp 13,97,0,0,-15,-14,-15,-10,-27,13,-10,46,40,63,70,69,35,59,39,31,39,24,-7,-7,-178,-47,-30,0,-52,-52,-54,-50,-50,-69,-57,-61,-59,-57,-53,-52,-77,-56,-87,-73,-179,-158,-173,-174,-207,-207,-171,-91,-79,-79,-126,-98,-141,-97,-120,-115,-118,-126,-131,-118,-156,-148,-198,-115,-223,-108,-149,-28,-28,-35,-37,-8,-8,-4,-48,-10,-37,-38,-39,-42,-49,0,-8]} 1. e4 {[%emt 0:00:48]} c5 {[%emt 0:00:17]} 2. d3 {[%emt 0:00:07]} Nc6 {[%emt 0:02:15]} 3. Be2 {[%emt 0:00:05]} Nf6 {[%emt 0:02:51]} 4. f4 {[%emt 0:00:26]} d6 {[%emt 0:01:01]} 5. Nf3 {[%emt 0:00:19]} g6 {[%emt 0:01:04]} 6. O-O {[%emt 0:00:19]} Bg7 {[%emt 0:00:08]} 7. c3 {[%emt 0:00:32]} O-O {[%emt 0:00:29]} 8. Qe1 {[%emt 0:00:57] [#]} c4 $1 {[%emt 0:06:02]} 9. Qh4 {[%emt 0:13:04]} (9. Na3 cxd3) 9... cxd3 {[%emt 0:13:24]} 10. Bxd3 {[%emt 0:00:02]} Qa5 {[%emt 0:00:54]} 11. h3 {[%emt 0:12:52]} Be6 {[%emt 0:06:24]} (11... e5 $11) 12. Be3 $14 {[%emt 0:03:41]} Qh5 {[%emt 0:09:30]} 13. Qf2 {[%emt 0:02:22]} d5 {[%emt 0:14:31]} 14. Ng5 {[%emt 0:14:33]} Nxe4 {[%emt 0:05:49]} 15. Bxe4 {[%emt 0:01:42]} dxe4 {[%emt 0:00:03]} 16. g4 {[%emt 0:00:12]} Qh6 {[%emt 0:05:24]} 17. Nd2 {[%emt 0:09:12][%cal Og5e6] Wards off Bc4} Bc8 {[%emt 0:01:51]} 18. f5 $2 {[%emt 0:05:04] [#]} (18. Ndxe4 $11 {and White stays safe.} f5 (18... f6 19. Qg3 $15) 19. gxf5) 18... gxf5 {[%emt 0:00:53]} ({Black should play} 18... f6 $1 $19 {[%cal Rf6g5]} 19. Ngxe4 Qxh3) 19. gxf5 $15 {[%emt 0:00:02]} Qh5 {[%emt 0:02:14]} 20. Qg2 {[%emt 0:10:00]} (20. Ndxe4 $11 h6 21. Ng3) 20... Kh8 {[%emt 0:04:59]} 21. Ndxe4 {[%emt 0:02:05]} Be5 $1 {[%emt 0:00:57]} 22. Qg4 {[%emt 0:11:38]} Qxg4+ {[%emt 0:00:05]} 23. hxg4 {[%emt 0:00:02]} f6 {[%emt 0:00:39]} 24. Nf3 {[%emt 0:00:05]} Rg8 {[%emt 0:00:21][%csl LRf5,LRg4]} 25. Nxe5 {[%emt 0:00:06]} Nxe5 {[%emt 0:00:09]} 26. g5 {[%emt 0:00:04]} Bd7 {[%emt 0:02:32]} 27. Nc5 {[%emt 0:02:57][%cal Oc5d7]} Bb5 $36 {[%emt 0:01:15][%mdl 2048] White is under strong pressure.} (27... fxg5 $2 28. Bd4 (28. Nxb7 Nc6 $18) 28... Rgd8 29. Nxb7 $18 (29. Bxe5+ Kg8 $18)) 28. Rfd1 {[%emt 0:02:18]} (28. Ne6 $17) 28... Nf3+ $19 {[%emt 0:02:38]} (28... fxg5 $2 29. Bd4 (29. Nxb7 Nf3+ 30. Kf2 g4 $15) 29... Rgf8 30. Re1 (30. Bxe5+ Kg8 $18) 30... Rxf5 31. Rxe5 Rxe5 32. Re1 $18 (32. Bxe5+ Kg8 $18)) 29. Kf2 {[%emt 0:00:23]} Nxg5 {[%emt 0:00:22]} 30. Rh1 {[%emt 0:02:31][%cal Oh1h5]} b6 {[%emt 0:02:40]} 31. Ne6 {[%emt 0:00:28] [#] and Nxg5 would now be decisive} Nxe6 {[%emt 0:04:32]} (31... Ne4+ $1 $19 32. Kf3 Ng3) 32. fxe6 $17 {[%emt 0:00:05]} Bc6 {[%emt 0:01:24]} 33. Rh2 {[%emt 0:00:38]} (33. Rhg1 $142) 33... Bd5 {[%emt 0:00:52]} 34. Bd4 {[%emt 0:00:08]} Rg7 {[%emt 0:00:28]} (34... Bxe6 35. Re1 Bd5 36. Rxe7 $16) 35. a4 {[%emt 0:00:07]} Bxe6 {[%emt 0:02:10]} 36. a5 {[%emt 0:00:01]} b5 {[%emt 0:00:54]} 37. a6 {[%emt 0:00:16]} Bd5 {[%emt 0:01:03]} 38. Ra5 {[%emt 0:00:16]} Bc6 {[%emt 0:00:00]} 39. c4 {[%emt 0:00:25]} (39. Ke1 $17) 39... Rg5 {[%emt 0:01:17]} (39... Rg4 $19 40. cxb5 Rxd4 41. bxc6 Rd2+ 42. Kg3 Rg8+ 43. Kh3 Rd3+ 44. Kh4 Rd4+ 45. Kh3 Rc4) 40. Rh4 {[%emt 0:02:33]} (40. Ke1 $17) 40... Kg8 {[%emt 0:00:53]} (40... e5 $19 {has better winning chances.} 41. Bc5 Rg2+ 42. Ke1 Rxb2) 41. Ke1 {[%emt 0:01:55]} bxc4 {[%emt 0:01:00]} (41... Rd8 $17 {And now ...h5 would win.} 42. cxb5 Rd6 (42... Rxb5 43. Ra3 $17) (42... Bxb5 $2 43. Bxa7 Re5+ 44. Kf2 $19)) 42. Rxg5+ $11 {[%emt 0:00:05]} fxg5 $17 {[%emt 0:00:04][%mdl 4096] Endgame KRB-KRB. Black is 3 pawns up.} 43. Rh5 {[%emt 0:00:02]} Be4 {[%emt 0:03:28]} 44. Rxg5+ {[%emt 0:00:03]} Kf7 {[%emt 0:00:12]} 45. Rc5 {[%emt 0:00:24][%cal Oe1d2]} Bd3 {[%emt 0:00:35]} 46. Rc7 {[%emt 0:00:03][%cal Oe1d2] [#]} c3 $1 {[%emt 0:01:38]} 47. bxc3 {[%emt 0:00:34]} (47. Bxc3 Bxa6) 47... Bxa6 {[%emt 0:00:27]} 48. Bc5 $1 {[%emt 0:00:50]} Bd3 {[%emt 0:00:50]} 49. Rxe7+ {[%emt 0:00:06]} 1/2-1/2

[Event "29th Bosnjaci Open 2025"]
[Site "Bosnjaci"]
[Date "2025.01.05"]
[Round "4.13"]
[White "Gal, Andrej"]
[Black "Fridl, Miroslav"]
[Result "1-0"]
[ECO "A80"]
[WhiteElo "2256"]
[BlackElo "1992"]
[Annotator "TA"]
[PlyCount "107"]
[EventDate "2025.01.04"]
[EventType "swiss"]
[EventCountry "CRO"]
[SourceTitle "playchess.com"]
[Source "ChessBase"]
[SourceQuality "1"]
[TimeControl "5400+30"]

{[%evp 9,107,56,64,62,67,55,68,56,74,66,123,91,86,96,98,87,112,98,163,141,137,73,87,72,129,68,115,102,114,27,45,51,105,0,0,0,0,0,-2,0,75,67,98,113,200,201,206,196,420,423,415,386,421,361,533,513,29990,29991,29992,1915,1885,1911,1689,1731,1364,540,542,568,556,565,579,550,584,499,620,619,602,579,1032,464,446,411,615,532,899,882,869,1035,1035,1008,972,680,679,657,1044,1018,913,681,1222,1219]} 1. d4 {[%emt 0:01:15]} f5 {[%emt 0:00:08]} 2. Bf4 {[%emt 0:00:19]} Nf6 {[%emt 0:00:13]} 3. e3 {[%emt 0:00:08]} g6 {[%emt 0:00:08]} 4. h4 {[%emt 0:00:34]} h6 {[%emt 0:03:44]} 5. Nc3 {[%emt 0:02:31]} Bg7 {[%emt 0:02:31]} 6. Qf3 {[%emt 0:06:38]} d6 $1 {[%emt 0:03:15][%cal Bd7d6,Bd6d5][%mdl 32]} 7. Bc4 {[%emt 0:10:48]} e6 {[%emt 0:04:31]} 8. Qg3 {[%emt 0:04:08] White is much more active.} Kf7 $1 {[%emt 0:01:22]} 9. O-O-O {[%emt 0:02:55]} Nh5 {[%emt 0:01:43]} (9... Qe8 $14) 10. Qh3 {[%emt 0:02:36]} Nxf4 {[%emt 0:00:58]} 11. exf4 {[%emt 0:00:01]} d5 {[%emt 0:00:10]} 12. Be2 {[%emt 0:07:50]} Nc6 {[%emt 0:01:14]} 13. Nf3 {[%emt 0:03:32]} Bf6 {[%emt 0:01:57]} (13... h5 $16) 14. Bb5 {[%emt 0:07:31]} Ne7 {[%emt 0:12:48][%cal Oc7c5]} 15. Ne2 {[%emt 0:09:22] A dynamic duo of knights.} (15. h5 $142 $1) 15... c6 $16 {[%emt 0:04:36]} 16. Bd3 {[%emt 0:02:58]} Bd7 {[%emt 0:02:41]} (16... h5 $142) 17. Rhg1 {[%emt 0:04:14]} (17. g4 $16) 17... Qa5 {[%emt 0:01:52]} (17... h5 $14 {is more appropriate.}) 18. Kb1 {[%emt 0:01:01]} c5 {[%emt 0:00:14]} 19. c3 {[%emt 0:02:08]} ({White should try} 19. dxc5 $1 $16 {g4 would now be deadly.} Qxc5 20. g4) 19... c4 $11 {[%emt 0:00:58]} 20. Bc2 {[%emt 0:00:10]} b5 {[%emt 0:03:56] [#]} (20... h5 $1 $14) 21. Ne5+ {[%emt 0:02:40]} (21. h5 $1 $16 {[%cal Rh5g6]}) 21... Bxe5 {[%emt 0:00:44]} 22. fxe5 {[%emt 0:00:05]} b4 {[%emt 0:02:36]} 23. cxb4 {[%emt 0:00:48]} Qxb4 {[%emt 0:00:10]} 24. Qc3 {[%emt 0:00:26]} Qb6 {[%emt 0:03:14]} (24... Rhb8 $11) 25. g4 $16 {[%emt 0:01:22]} Rag8 {[%emt 0:07:14]} 26. Nf4 {[%emt 0:02:11][%cal Be2f4,Bf4h5,Bh5f6][%mdl 32]} (26. gxf5 {feels hotter.} gxf5 27. Nf4 Rb8 28. a3) 26... Nc6 {[%emt 0:06:44]} (26... Rb8 $16 {was necessary.}) 27. gxf5 $18 {[%emt 0:02:59]} gxf5 {[%emt 0:01:15] [#]} 28. Nh5 $1 {[%emt 0:01:46]} Ke7 $2 {[%emt 0:05:17]} (28... Qa5 29. Rxg8 (29. Qe3 $2 Nb4 $19) 29... Rxg8) 29. Nf6 {[%emt 0:01:34]} Rxg1 {[%emt 0:00:25]} 30. Rxg1 {[%emt 0:00:25]} Kd8 {[%emt 0:03:56][%cal Be7d8,Bd8c8,Bc8b8][%mdl 32]} 31. Rg7 {[%emt 0:04:29]} Bc8 {[%emt 0:04:02]} (31... Be8 $142 32. Qa3 (32. Ba4 Qxd4 33. Qxd4 Nxd4 $18) 32... Kc8) 32. Ba4 {[%emt 0:05:57]} Nxd4 {[%emt 0:02:07]} (32... Nb4 $18 33. Ng8 Rxg8 34. Rxg8+ Kc7) 33. Qa3 {[%emt 0:00:44][%csl Gg7][%cal Ra3e7]} Ba6 {[%emt 0:01:12]} 34. Qe7+ {[%emt 0:01:51]} (34. Ng8 $142 Kc8 35. Qf8+ Qd8 36. Qc5+ (36. Bd7+ Kb7 37. Qxd8 Rxg8 38. Rxg8 Nc6 39. Qc8+ Kb6 40. Qxc6+ Ka5 41. Qc5+ Bb5 42. Qxb5#) 36... Nc6 37. Bxc6 (37. Qxc6+ Kb8 $18) (37. Ne7+ Kc7 38. Nxc6+ Qd7 39. Rxd7+ Kxd7 40. Nd4+ Bb5 41. Bxb5+ Kd8 42. Nxe6#) 37... Qd7 38. Bxd7+ (38. Rxd7 Rxg8 39. Bb5+ Kb8 40. Qxa7+ Kc8 41. Bxa6#) 38... Kb8 39. Be8 (39. Bxe6 Bb7 40. Qf8+ Bc8 41. Qxc8#) (39. Qd6+ Kb7 40. Bxe6+ Ka8 41. Bxd5+ Bb7 42. Bxb7#) 39... h5 40. Qxa7+ Kc8 41. Qc7#) 34... Kc8 {[%emt 0:00:11]} 35. Bd7+ {[%emt 0:00:53]} (35. Qxa7 Qxa7 36. Rxa7 Bb7 $11) 35... Kb8 {[%emt 0:01:00] [#]} 36. Bxe6 $1 {[%emt 0:00:38][%mdl 512]} Bb5 {[%emt 0:02:36]} 37. Bxd5 {[%emt 0:03:17]} (37. Nxd5 c3 38. bxc3 (38. Nxb6 Bd3+ 39. Kc1 Ne2+ 40. Kd1 c2+ 41. Kd2 c1=Q+ 42. Kxd3 Nf4+ 43. Kd4 Qxb2+ 44. Kc4 Qxa2+ 45. Kb4 Qb2+ 46. Ka4 Qxb6 $11) 38... Bd3+ 39. Kc1 Qb1+ 40. Kd2 Qc2+ 41. Ke3 Qe2+ 42. Kxd4 Qe4+ 43. Kc5 Qc4+ 44. Kd6 Qa6+ $11) (37. Bg8 $142 {Intending Qf8+ and mate.} Ne6 38. Nxd5 (38. Qxe6 Qxe6 39. Bxe6 d4 $18) (38. Bxe6 c3 $18) 38... Nxg7 39. Nxb6 Rxg8 40. Qd6+ Kb7 41. Nxc4 Bxc4 42. Qb4+ (42. Qxh6 Ne6 $18) 42... Ka8 43. Qxc4) 37... Rd8 {[%emt 0:06:14]} 38. Qb7+ {[%emt 0:02:35]} Qxb7 {[%emt 0:00:00]} 39. Rxb7+ {[%emt 0:00:01]} Kc8 {[%emt 0:00:00][%cal Od8d5] And now ...Rxd5! would win.} 40. Rxa7 {[%emt 0:00:13]} Kb8 {[%emt 0:00:00]} 41. Rh7 {[%emt 0:01:32]} Ba4 {[%emt 0:00:38]} 42. Rb7+ {[%emt 0:01:44]} Kc8 {[%emt 0:00:10][%cal Od8d5]} 43. Rb4 {[%emt 0:00:33]} Bb5 {[%emt 0:04:06]} 44. Bxc4 {[%emt 0:01:11]} (44. a4 $142) 44... Bc6 {[%emt 0:00:01]} 45. a4 {[%emt 0:01:00]} Be4+ {[%emt 0:01:34]} (45... Nf3 $142 46. e6 Rd4) 46. Ka2 {[%emt 0:00:43]} Nc6 {[%emt 0:00:05]} 47. Ba6+ {[%emt 0:00:31]} Kc7 {[%emt 0:00:21]} 48. Rb7+ {[%emt 0:00:30]} Kc8 {[%emt 0:00:30]} 49. Nxe4 {[%emt 0:00:30]} fxe4 {[%emt 0:00:30]} 50. Rb4+ {[%emt 0:00:30]} Kc7 {[%emt 0:00:00]} 51. Rxe4 {[%emt 0:00:00]} Rb8 {[%emt 0:00:00]} 52. Bb5 {[%emt 0:00:00]} Ne7 {[%emt 0:00:00]} 53. e6 {[%emt 0:00:00]} Rf8 {[%emt 0:00:00]} 54. Rd4 {[%emt 0:00:00]} 1-0

[Event "29th Bosnjaci Open 2025"]
[Site "Bosnjaci"]
[Date "2025.01.05"]
[Round "4.14"]
[White "Petricevic, Mateo"]
[Black "Glavas, Dragan"]
[Result "1-0"]
[ECO "D02"]
[WhiteElo "2060"]
[BlackElo "2251"]
[Annotator "TA"]
[PlyCount "79"]
[EventDate "2025.01.04"]
[EventType "swiss"]
[EventCountry "CRO"]
[SourceTitle "playchess.com"]
[Source "ChessBase"]
[SourceQuality "1"]
[TimeControl "5400+30"]

{[%evp 9,79,50,51,46,47,25,61,35,31,22,25,7,27,34,45,45,90,27,57,-7,62,11,15,0,0,0,0,0,0,0,9,-4,0,0,30,45,94,79,127,76,290,89,123,5,10,27,334,325,364,346,445,424,545,501,550,558,710,706,820,787,860,803,813,761,727,716,3521,3521,1926,1921,1925,1858]} 1. Nf3 {[%emt 0:00:03]} d5 {[%emt 0:00:10]} 2. g3 {[%emt 0:00:14]} Nd7 {[%emt 0:02:08]} 3. d4 {[%emt 0:00:49]} Nb6 {[%emt 0:00:21]} 4. Bg2 {[%emt 0:00:58]} h6 {[%emt 0:00:20]} 5. Ne5 {[%emt 0:05:42]} Nf6 {[%emt 0:03:47]} 6. a4 {[%emt 0:08:29]} a5 {[%emt 0:01:14]} 7. b3 {[%emt 0:01:42]} Ng4 {[%emt 0:13:17]} 8. Nxg4 {[%emt 0:09:39]} Bxg4 {[%emt 0:00:10]} 9. f3 {[%emt 0:09:36]} Bh5 {[%emt 0:01:21]} 10. Ba3 {[%emt 0:02:00]} g5 {[%emt 0:10:15]} 11. Qd2 {[%emt 0:08:24]} Bg7 {[%emt 0:03:12]} 12. Nc3 {[%emt 0:01:15]} O-O {[%emt 0:01:37][%cal Oe7e5]} 13. g4 {[%emt 0:03:04]} (13. h4 $16 g4 14. O-O-O) 13... Bg6 $11 {[%emt 0:00:19][%cal Oe7e5]} 14. h4 {[%emt 0:00:12]} (14. e3 $14) 14... Re8 {[%emt 0:10:17]} (14... e5 $11) 15. hxg5 {[%emt 0:07:07]} (15. O-O-O $14) 15... hxg5 {[%emt 0:01:47]} 16. O-O-O {[%emt 0:08:19][%cal Oe2e3]} (16. Qxg5 {with more complications.} e5 17. Qxd8 Raxd8 18. Nb5) 16... e5 {[%emt 0:03:13]} 17. e3 {[%emt 0:01:28]} exd4 $1 {[%emt 0:08:49]} 18. exd4 {[%emt 0:00:13]} c6 {[%emt 0:01:47]} 19. Ne2 $36 {[%emt 0:12:45][%mdl 2048] White fights for an advantage.} Nd7 {[%emt 0:12:17]} 20. Ng3 {[%emt 0:05:38]} b5 {[%emt 0:05:13] Hoping for ...bxa4.} 21. Nf5 {[%emt 0:01:42]} Bxf5 {[%emt 0:04:04]} 22. gxf5 {[%emt 0:00:05]} b4 {[%emt 0:01:09]} (22... bxa4 $14 {deserves consideration.} 23. bxa4 Bf6) 23. Bb2 $16 {[%emt 0:00:08][%cal Ba3b2,Bb2c1,Bc1f4][%mdl 32]} Qf6 {[%emt 0:00:17]} (23... Qe7 $142) 24. Rh5 {[%emt 0:01:01]} (24. Kb1) 24... c5 $2 {[%emt 0:02:06] [#]} (24... Re7 $16) 25. Qxg5 $2 {[%emt 0:04:51]} ({Not} 25. Rxg5 c4 $14) (25. f4 $1 $18 {is the precise move to win.}) 25... c4 {[%emt 0:01:44]} 26. Kb1 {[%emt 0:00:08]} ({White should try} 26. f4 $16) 26... Qxg5 {[%emt 0:03:46]} 27. Rxg5 {[%emt 0:00:04]} c3 $2 {[%emt 0:02:28][%mdl 8192]} (27... cxb3 $1 $11 28. cxb3 Kf8) 28. Bc1 $18 {[%emt 0:00:03]} Kf8 {[%emt 0:00:40]} 29. Bf4 {[%emt 0:01:10]} f6 {[%emt 0:03:30]} 30. Rg6 {[%emt 0:00:27] Black must now prevent Bd6+.} Kf7 {[%emt 0:00:32]} 31. Bf1 {[%emt 0:00:41][%cal Bg2f1,Bf1b5,Bb5c6,Bc6d5,Bd5f7][%mdl 32]} Rh8 {[%emt 0:00:14] Black is weak on the light squares} 32. Bb5 {[%emt 0:00:33]} Nf8 {[%emt 0:00:38]} 33. Rg2 {[%emt 0:00:39]} Rh5 {[%emt 0:00:40]} 34. Rdg1 {[%emt 0:00:47]} Bh8 {[%emt 0:00:12]} 35. Bc6 {[%emt 0:00:33]} Rd8 {[%emt 0:00:52]} 36. Bc7 {[%emt 0:00:13][%csl LRa5,LRd8] A strong pair of Bishops.} Rc8 {[%emt 0:00:32]} 37. Bxd5+ {[%emt 0:00:30]} Ke7 {[%emt 0:00:40] [#]} 38. Rg7+ $1 {[%emt 0:01:24]} Bxg7 {[%emt 0:00:16]} 39. Rxg7+ {[%emt 0:00:06]} Ke8 {[%emt 0:00:19]} 40. Bf7+ {[%emt 0:00:12]} 1-0